Workbook

Sheet Trouwbudget
B4: Trouwdatum:
B5: =TODAY()+365 -> 2020-06-28
B7: Categorie | C7: Geschatte | D7: Werkelijk | E7: Over/onder | F7: Gereed
B8: Kleding | C8: =Kleding_totaal_geschat -> 9,490.00 | D8: =Kleding_totaal_werkelijk -> 9,770.00 | E8: =Budgetoverzicht[[#This Row],[Geschatte]]-Budgetoverzicht[[#This Row],[Werkelijk]] -> -280.00 | F8: =Kleding_gereed -> Nee
B9: Receptie | C9: =Receptie_totaal_geschat -> 1,050.00 | D9: =Receptie_totaal_werkelijk -> 928.00 | E9: =Budgetoverzicht[[#This Row],[Geschatte]]-Budgetoverzicht[[#This Row],[Werkelijk]] -> 122.00 | F9: =Receptie_gereed -> Ja
B10: Muziek | C10: =Muziek_entertainment_totaal_geschat -> 600.00 | D10: =Muziek_entertainment_totaal_werkelijk -> 500.00 | E10: =Budgetoverzicht[[#This Row],[Geschatte]]-Budgetoverzicht[[#This Row],[Werkelijk]] -> 100.00 | F10: =Muziek_gereed -> Ja
B11: Drukwerk | C11: =Drukwerk_briefpapier_totaal_geschat -> 935.00 | D11: =Drukwerk_briefpapier_totaal_werkelijk -> 870.00 | E11: =Budgetoverzicht[[#This Row],[Geschatte]]-Budgetoverzicht[[#This Row],[Werkelijk]] -> 65.00 | F11: =Druwerk_gereed -> Nee
B12: Fotografie | C12: =Fotografie_totaal_geschat -> 1,625.00 | D12: =Fotografie_totaal_werkelijk -> 1,575.00 | E12: =Budgetoverzicht[[#This Row],[Geschatte]]-Budgetoverzicht[[#This Row],[Werkelijk]] -> 50.00 | F12: =Fotografie_gereed -> Nee
B13: Versieringen | C13: =Versiering_totaal_geschat -> 700.00 | D13: =Versiering_totaal_werkelijk -> 720.00 | E13: =Budgetoverzicht[[#This Row],[Geschatte]]-Budgetoverzicht[[#This Row],[Werkelijk]] -> -20.00 | F13: =Versiering_gereed -> Ja
B14: Bloemen | C14: =Bloemen_totaal_geschat -> 900.00 | D14: =Bloemen_totaal_werkelijk -> 850.00 | E14: =Budgetoverzicht[[#This Row],[Geschatte]]-Budgetoverzicht[[#This Row],[Werkelijk]] -> 50.00 | F14: =Bloemen_gereed -> Nee
B15: Cadeaus | C15: =Cadeaus_totaal_geschat -> 1,345.00 | D15: =Cadeaus_totaal_werkelijk -> 1,075.00 | E15: =Budgetoverzicht[[#This Row],[Geschatte]]-Budgetoverzicht[[#This Row],[Werkelijk]] -> 270.00 | F15: =Cadeaus_gereed -> Nee
B16: Reiskosten | C16: =Reiskosten_vervoer_totaal_geschat -> 100.00 | D16: =Reiskosten_vervoer_totaal_werkelijk -> 165.00 | E16: =Budgetoverzicht[[#This Row],[Geschatte]]-Budgetoverzicht[[#This Row],[Werkelijk]] -> -65.00 | F16: =Vervoer_gereed -> Ja
B17: Anders | C17: =Overige_uitgaven_totaal_geschat -> 885.00 | D17: =Overige_uitgaven_totaal_werkelijk -> 1,021.00 | E17: =Budgetoverzicht[[#This Row],[Geschatte]]-Budgetoverzicht[[#This Row],[Werkelijk]] -> -136.00 | F17: =Overig_gereed -> Nee
B18: Totale onkosten | C18: =SUBTOTAL(109,Budgetoverzicht[Geschatte]) -> 17,630.00 | D18: =SUBTOTAL(109,Budgetoverzicht[Werkelijk]) -> 17,474.00 | E18: =SUBTOTAL(109,Budgetoverzicht[Over/onder]) -> 156.00
B19: Deze cel bevat een tabel met het percentage van elke uitgavencategorie.

Sheet Kosten
B2: Kleding
B4: Categorie | C4: Geschatte | D4: Werkelijk | E4: Over/onder
B5: Verlovingsring(en) | C5: 1,500.00 | D5: 1,500.00 | E5: =Kosten!$C5-Kosten!$D5 -> 0.00
B6: Partner 1 ring | C6: 2,000.00 | D6: 2,300.00 | E6: =Kosten!$C6-Kosten!$D6 -> -300.00
B7: Partner 1 jurk/smoking | C7: 3,000.00 | D7: 2,750.00 | E7: =Kosten!$C7-Kosten!$D7 -> 250.00
B8: Partner 1 sluier/hoofddeksel | C8: 500.00 | D8: 500.00 | E8: =Kosten!$C8-Kosten!$D8 -> 0.00
B9: Partner 1 schoenen | C9: 350.00 | D9: 300.00 | E9: =Kosten!$C9-Kosten!$D9 -> 50.00
B10: Partner 1 sieraden | C10: 400.00 | D10: 550.00 | E10: =Kosten!$C10-Kosten!$D10 -> -150.00
B11: Partner 1 kousen | C11: 20.00 | D11: 20.00 | E11: =Kosten!$C11-Kosten!$D11 -> 0.00
B12: Partner 2 ring | C12: 300.00 | D12: 250.00 | E12: =Kosten!$C12-Kosten!$D12 -> 50.00
B13: Partner 2 jurk/smoking | C13: 300.00 | D13: 350.00 | E13: =Kosten!$C13-Kosten!$D13 -> -50.00
B14: Partner 2 sluier/hoofddeksel | C14: 500.00 | D14: 500.00 | E14: =Kosten!$C14-Kosten!$D14 -> 0.00
B15: Partner 2 schoenen | C15: 200.00 | D15: 175.00 | E15: =Kosten!$C15-Kosten!$D15 -> 25.00
B16: Partner 2 sieraden | C16: 400.00 | D16: 550.00 | E16: =Kosten!$C16-Kosten!$D16 -> -150.00
B17: Partner 2 kousen | C17: 20.00 | D17: 25.00 | E17: =Kosten!$C17-Kosten!$D17 -> -5.00
B18: Totaal kleding | C18: =SUBTOTAL(109,Kleding[Geschatte]) -> 9,490.00 | D18: =SUBTOTAL(109,Kleding[Werkelijk]) -> 9,770.00 | E18: =SUBTOTAL(109,Kleding[Over/onder]) -> -280.00
D20: ="Zijn alle uitgaven in de categorie "&B2&" gereed?" -> Zijn alle uitgaven in de categorie Kleding gereed? | E20: Nee
B22: Receptie*
B24: Categorie | C24: Geschat | D24: Werkelijk | E24: Over/onder
B25: Kosten kamer/zaal | C25: 200.00 | D25: 150.00 | E25: =Kosten!$C25-Kosten!$D25 -> 50.00
B26: Tafels en stoelen | C26: 100.00 | D26: 50.00 | E26: =Kosten!$C26-Kosten!$D26 -> 50.00
B27: Eten | C27: 0.00 | D27: 0.00 | E27: =Kosten!$C27-Kosten!$D27 -> 0.00
B28: Drinken | C28: 0.00 | D28: 0.00 | E28: =Kosten!$C28-Kosten!$D28 -> 0.00
B29: Linnengoed | C29: 0.00 | D29: 0.00 | E29: =Kosten!$C29-Kosten!$D29 -> 0.00
B30: Taart | C30: 700.00 | D30: 700.00 | E30: =Kosten!$C30-Kosten!$D30 -> 0.00
B31: Aandenkens | C31: 50.00 | D31: 28.00 | E31: =Kosten!$C31-Kosten!$D31 -> 22.00
B32: Personeel en fooien | C32: 0.00 | D32: 0.00 | E32: =Kosten!$C32-Kosten!$D32 -> 0.00
B33: Totaal receptie | C33: =SUBTOTAL(109,Receptie[Geschat]) -> 1,050.00 | D33: =SUBTOTAL(109,Receptie[Werkelijk]) -> 928.00 | E33: =SUBTOTAL(109,Receptie[Over/onder]) -> 122.00
B34: * Exclusief entertainment en versieringen
D36: ="Zijn alle uitgaven in de categorie "&B22&" gereed?" -> Zijn alle uitgaven in de categorie Receptie* gereed? | E36: Ja
B38: Muziek/entertainment
B40: Categorie | C40: Geschat | D40: Werkelijk | E40: Over/onder
B41: Muzikanten voor ceremonie | C41: 400.00 | D41: 400.00 | E41: =Kosten!$C41-Kosten!$D41 -> 0.00
B42: Band/DJ voor receptie | C42: 200.00 | D42: 100.00 | E42: =Kosten!$C42-Kosten!$D42 -> 100.00
B43: Totaal muziek/entertainment | C43: =SUBTOTAL(109,Muziek[Geschat]) -> 600.00 | D43: =SUBTOTAL(109,Muziek[Werkelijk]) -> 500.00 | E43: =SUBTOTAL(109,Muziek[Over/onder]) -> 100.00
D45: ="Zijn alle uitgaven in de categorie "&B38&" gereed?" -> Zijn alle uitgaven in de categorie Muziek/entertainment gereed? | E45: Ja
B47: Drukwerk/briefpapier
B49: Categorie | C49: Geschat | D49: Werkelijk | E49: Over/onder
B50: Uitnodigingen | C50: 500.00 | D50: 450.00 | E50: =Kosten!$C50-Kosten!$D50 -> 50.00
B51: Aankondigingen | C51: 200.00 | D51: 175.00 | E51: =Kosten!$C51-Kosten!$D51 -> 25.00
B52: Bedankkaarten | C52: 100.00 | D52: 100.00 | E52: =Kosten!$C52-Kosten!$D52 -> 0.00
B53: Persoonlijk briefpapier | C53: 0.00 | D53: 0.00 | E53: =Kosten!$C53-Kosten!$D53 -> 0.00
B54: Gastenboek | C54: 25.00 | D54: 25.00 | E54: =Kosten!$C54-Kosten!$D54 -> 0.00
B55: Programma's | C55: 75.00 | D55: 80.00 | E55: =Kosten!$C55-Kosten!$D55 -> -5.00
B56: Receptieservetten | C56: 35.00 | D56: 40.00 | E56: =Kosten!$C56-Kosten!$D56 -> -5.00
B57: Lucifersboekjes | C57: 0.00 | D57: 0.00 | E57: =Kosten!$C57-Kosten!$D57 -> 0.00
B58: Kalligrafie | C58: 0.00 | D58: 0.00 | E58: =Kosten!$C58-Kosten!$D58 -> 0.00
B59: Totaal drukwerk/briefpapier | C59: =SUBTOTAL(109,Drukwerk[Geschat]) -> 935.00 | D59: =SUBTOTAL(109,Drukwerk[Werkelijk]) -> 870.00 | E59: =SUBTOTAL(109,Drukwerk[Over/onder]) -> 65.00
D61: ="Zijn alle uitgaven in de categorie "&B47&" gereed?" -> Zijn alle uitgaven in de categorie Drukwerk/briefpapier gereed? | E61: Nee
B63: Fotografie
B65: Categorie | C65: Geschat | D65: Werkelijk | E65: Over/onder
B66: Formele foto's | C66: 1,300.00 | D66: 1,300.00 | E66: =Kosten!$C66-Kosten!$D66 -> 0.00
B67: Extra afdrukken | C67: 25.00 | D67: 25.00 | E67: =Kosten!$C67-Kosten!$D67 -> 0.00
B68: Fotoalbums | C68: 100.00 | D68: 100.00 | E68: =Kosten!$C68-Kosten!$D68 -> 0.00
B69: Video-opnamen | C69: 200.00 | D69: 150.00 | E69: =Kosten!$C69-Kosten!$D69 -> 50.00
B70: Totaal fotografie | C70: =SUBTOTAL(109,Fotografie[Geschat]) -> 1,625.00 | D70: =SUBTOTAL(109,Fotografie[Werkelijk]) -> 1,575.00 | E70: =SUBTOTAL(109,Fotografie[Over/onder]) -> 50.00
D72: ="Zijn alle uitgaven in de categorie "&B63&" gereed?" -> Zijn alle uitgaven in de categorie Fotografie gereed? | E72: Nee
B74: Versieringen*
B76: Categorie | C76: Geschat | D76: Werkelijk | E76: Over/onder
B77: Stoelstrikken | C77: 0.00 | D77: 0.00 | E77: =Kosten!$C77-Kosten!$D77 -> 0.00
B78: Tafelversieringen | C78: 300.00 | D78: 320.00 | E78: =Kosten!$C78-Kosten!$D78 -> -20.00
B79: Kaarsen | C79: 100.00 | D79: 75.00 | E79: =Kosten!$C79-Kosten!$D79 -> 25.00
B80: Verlichting | C80: 100.00 | D80: 75.00 | E80: =Kosten!$C80-Kosten!$D80 -> 25.00
B81: Ballonnen | C81: 200.00 | D81: 250.00 | E81: =Kosten!$C81-Kosten!$D81 -> -50.00
B82: Totaal versieringen | C82: =SUBTOTAL(109,Versieringen[Geschat]) -> 700.00 | D82: =SUBTOTAL(109,Versieringen[Werkelijk]) -> 720.00 | E82: =SUBTOTAL(109,Versieringen[Over/onder]) -> -20.00
B83: *Exclusief bloemen
D85: ="Zijn alle uitgaven in de categorie "&B74&" gereed?" -> Zijn alle uitgaven in de categorie Versieringen* gereed? | E85: Ja
B87: Bloemen
B89: Categorie | C89: Geschat | D89: Werkelijk | E89: Over/onder
B90: Boeketten | C90: 500.00 | D90: 450.00 | E90: =Kosten!$C90-Kosten!$D90 -> 50.00
B91: Boutonnières | C91: 0.00 | D91: 0.00 | E91: =Kosten!$C91-Kosten!$D91 -> 0.00
B92: Corsages | C92: 0.00 | D92: 0.00 | E92: =Kosten!$C92-Kosten!$D92 -> 0.00
B93: Ceremonie | C93: 400.00 | D93: 400.00 | E93: =Kosten!$C93-Kosten!$D93 -> 0.00
B94: Receptie | C94: 0.00 | D94: 0.00 | E94: =Kosten!$C94-Kosten!$D94 -> 0.00
B95: Totaal bloemen | C95: =SUBTOTAL(109,Bloemen[Geschat]) -> 900.00 | D95: =SUBTOTAL(109,Bloemen[Werkelijk]) -> 850.00 | E95: =SUBTOTAL(109,Bloemen[Over/onder]) -> 50.00
D97: ="Zijn alle uitgaven in de categorie "&B87&" gereed?" -> Zijn alle uitgaven in de categorie Bloemen gereed? | E97: Nee
B99: Cadeaus
B101: Categorie | C101: Geschat | D101: Werkelijk | E101: Over/onder
B102: Gevolg | C102: 1,000.00 | D102: 400.00 | E102: =Kosten!$C102-Kosten!$D102 -> 600.00
B103: Partner 1 | C103: 150.00 | D103: 200.00 | E103: =Kosten!$C103-Kosten!$D103 -> -50.00
B104: Partner 2 | C104: 150.00 | D104: 200.00 | E104: =Kosten!$C104-Kosten!$D104 -> -50.00
B105: Ouders | C105: 25.00 | D105: 25.00 | E105: =Kosten!$C105-Kosten!$D105 -> 0.00
B106: Sprekers/andere deelnemers | C106: 20.00 | D106: 250.00 | E106: =Kosten!$C106-Kosten!$D106 -> -230.00
B107: Totaal cadeaus | C107: =SUBTOTAL(109,Cadeaus[Geschat]) -> 1,345.00 | D107: =SUBTOTAL(109,Cadeaus[Werkelijk]) -> 1,075.00 | E107: =SUBTOTAL(109,Cadeaus[Over/onder]) -> 270.00
D109: ="Zijn alle uitgaven in de categorie "&B99&" gereed?" -> Zijn alle uitgaven in de categorie Cadeaus gereed? | E109: Nee
B111: Reis-/vervoerskosten
B113: Categorie | C113: Geschat | D113: Werkelijk | E113: Over/onder
B114: Limousines/trolleybussen | C114: 100.00 | D114: 125.00 | E114: =Kosten!$C114-Kosten!$D114 -> -25.00
B115: Parkeren | C115: 0.00 | D115: 40.00 | E115: =Kosten!$C115-Kosten!$D115 -> -40.00
B116: Taxi's | C116: 0.00 | D116: 0.00 | E116: =Kosten!$C116-Kosten!$D116 -> 0.00
B117: Totaal reis-/vervoerskosten | C117: =SUBTOTAL(109,Reiskosten[Geschat]) -> 100.00 | D117: =SUBTOTAL(109,Reiskosten[Werkelijk]) -> 165.00 | E117: =SUBTOTAL(109,Reiskosten[Over/onder]) -> -65.00
D119: ="Zijn alle uitgaven in de categorie "&B111&" gereed?" -> Zijn alle uitgaven in de categorie Reis-/vervoerskosten gereed? | E119: Ja
B121: Overige uitgaven
B123: Categorie | C123: Geschat | D123: Werkelijk | E123: Over/onder
B124: Officiant | C124: 0.00 | D124: 0.00 | E124: =Kosten!$C124-Kosten!$D124 -> 0.00
B125: Kosten kerk/ceremonielocatie | C125: 40.00 | D125: 55.00 | E125: =Kosten!$C125-Kosten!$D125 -> -15.00
B126: Bruiloftscoördinator | C126: 0.00 | D126: 0.00 | E126: =Kosten!$C126-Kosten!$D126 -> 0.00
B127: Repetitiediner | C127: 450.00 | D127: 450.00 | E127: =Kosten!$C127-Kosten!$D127 -> 0.00
B128: Verlovingsfeest | C128: 20.00 | D128: 50.00 | E128: =Kosten!$C128-Kosten!$D128 -> -30.00
B129: Showers | C129: 30.00 | D129: 20.00 | E129: =Kosten!$C129-Kosten!$D129 -> 10.00
B130: Schoonheidssalon | C130: 45.00 | D130: 46.00 | E130: =Kosten!$C130-Kosten!$D130 -> -1.00
B131: Vrijgezellenfeesten | C131: 0.00 | D131: 0.00 | E131: =Kosten!$C131-Kosten!$D131 -> 0.00
B132: Brunch | C132: 300.00 | D132: 400.00 | E132: =Kosten!$C132-Kosten!$D132 -> -100.00
B133: Hotelkamers | C133: 0.00 | D133: 0.00 | E133: =Kosten!$C133-Kosten!$D133 -> 0.00
B134: Totaal overige uitgaven | C134: =SUBTOTAL(109,OverigeUitgaven[Geschat]) -> 885.00 | D134: =SUBTOTAL(109,OverigeUitgaven[Werkelijk]) -> 1,021.00 | E134: =SUBTOTAL(109,OverigeUitgaven[Over/onder]) -> -136.00
D136: ="Zijn alle uitgaven in de categorie "&B121&" gereed?" -> Zijn alle uitgaven in de categorie Overige uitgaven gereed? | E136: Nee

Sheet Berekeningen (hidden)
B2: CATEGORIE | C2: GESCHAT | D2: Werkelijk | F2: Geschatte | H2: BOVEN/ONDER
B3: Kleding | C3: =Kleding_totaal_geschat -> 9,490.00 | D3: =Kleding_totaal_werkelijk -> 9,770.00 | E3: =C3-F3 -> 9,480.00 | F3: =ROUNDUP($C$13/1000,0) -> 10.00 | G3: =$D$13-E3 -> 290 | H3: =D3-C3 -> 280.00
B4: Receptie | C4: =Receptie_totaal_geschat -> 1,050.00 | D4: =Receptie_totaal_werkelijk -> 928.00 | E4: =C4-F4 -> 1,040.00 | F4: =ROUNDUP($C$13/1000,0) -> 10.00 | G4: =$D$13-E4 -> 8730 | H4: =D4-C4 -> -122.00
B5: Muziek | C5: =Muziek_entertainment_totaal_geschat -> 600.00 | D5: =Muziek_entertainment_totaal_werkelijk -> 500.00 | E5: 590.00 | F5: 10.00 | G5: 9180 | H5: -100.00
B6: Drukwerk | C6: =Drukwerk_briefpapier_totaal_geschat -> 935.00 | D6: =Drukwerk_briefpapier_totaal_werkelijk -> 870.00 | E6: 925.00 | F6: 10.00 | G6: 8845 | H6: -65.00
B7: Fotografie | C7: =Fotografie_totaal_geschat -> 1,625.00 | D7: =Fotografie_totaal_werkelijk -> 1,575.00 | E7: 1,615.00 | F7: 10.00 | G7: 8155 | H7: -50.00
B8: Versieringen | C8: =Versiering_totaal_geschat -> 700.00 | D8: =Versiering_totaal_werkelijk -> 720.00 | E8: 690.00 | F8: 10.00 | G8: 9080 | H8: 20.00
B9: Bloemen | C9: =Bloemen_totaal_geschat -> 900.00 | D9: =Bloemen_totaal_werkelijk -> 850.00 | E9: 890.00 | F9: 10.00 | G9: 8880 | H9: -50.00
B10: Cadeaus | C10: =Cadeaus_totaal_geschat -> 1,345.00 | D10: =Cadeaus_totaal_werkelijk -> 1,075.00 | E10: 1,335.00 | F10: 10.00 | G10: 8435 | H10: -270.00
B11: Reiskosten | C11: =Reiskosten_vervoer_totaal_geschat -> 100.00 | D11: =Reiskosten_vervoer_totaal_werkelijk -> 165.00 | E11: 90.00 | F11: 10.00 | G11: 9680 | H11: 65.00
B12: Overig | C12: =Overige_uitgaven_totaal_geschat -> 885.00 | D12: =Overige_uitgaven_totaal_werkelijk -> 1,021.00 | E12: 875.00 | F12: 10.00 | G12: 8895 | H12: 136.00
B13: Max | C13: =MAX(C3:D12) -> 9770 | D13: =MAX(C3:D12) -> 9770 | F13: 10.00
